bitfinex/quotes_ETHUSD_20250505
["timestamp","ask_amount","ask_price","bid_price","bid_amount"]
[1746459390958,5.52322281,1810.6,1810.3,0.7743]
[1746459391130,11.04651298,1810.6,1810.3,2.4820365]
[1746459391656,5.523489,1810.5,1810.3,2.4820365]
[1746459391863,5.523489,1810.5,1810.3,0.7743]
[1746459392057,5.5236641,1810.4,1810.2,6.9382]
[1746459392255,5.5239463,1810.3,1810.0,0.7982]
[1746459392458,5.52381343,1810.4,1810.0,6.37827756]
[1746459392677,11.04712924,1810.5,1810.1,5.52454599]
[1746459392979,5.52349933,1810.5,1810.1,6.16234508]
[1746459393276,10.16219208,1810.6,1810.1,6.16234508]
[1746459393277,5.52319208,1810.6,1810.2,6.32270856]
[1746459393455,5.52287106,1810.7,1810.3,5.52378973]
[1746459393882,5.52287106,1810.7,1810.2,9.53464083]
[1746459394040,5.52284891,1810.7,1810.3,6.33117233]
[1746459394241,8.52242102,1810.8,1810.4,8.73548796]
[1746459394462,14.04509274,1810.8,1810.5,1.6809488]
[1746459395045,8.52242102,1810.8,1810.5,1.6809488]
[1746459395347,14.04509191,1810.8,1810.5,1.6809488]
[1746459395886,5.52286435,1810.7,1810.5,0.8074]
[1746459396178,5.52303103,1810.6,1810.5,0.8074]
[1746459396475,11.04583378,1810.7,1810.5,0.8074]
[1746459396674,5.52286435,1810.7,1810.5,0.8074]
[1746459398975,8.5225913,1810.8,1810.5,0.8074]
[1746459398976,5.5225913,1810.8,1810.5,6.33071211]
[1746459399177,5.5225913,1810.8,1810.6,0.63307121]
[1746459399880,5.52272601,1810.7,1810.5,0.8074]
[1746459400178,5.52272601,1810.7,1810.4,3.21193227]
[1746459400179,5.52303103,1810.6,1810.3,0.7667]
[1746459400555,5.52337979,1810.5,1810.3,0.7667]
[1746459401174,5.52303103,1810.6,1810.3,0.7667]
[1746459401383,5.52287115,1810.7,1810.3,6.29041967]
[1746459401578,5.52287115,1810.7,1810.4,0.62904197]
[1746459402083,5.52254315,1810.8,1810.5,0.8146]
[1746459402587,5.52228786,1810.9,1810.5,6.33778942]
[1746459403798,5.52250596,1810.8,1810.5,0.8146]
[1746459403991,5.52296205,1810.7,1810.5,0.8146]
[1746459404862,5.52296205,1810.7,1810.6,0.27875621]
[1746459408491,5.5231755,1810.6,1810.3,12.4664285]
[1746459408798,5.52272601,1810.7,1810.6,0.27832387]
[1746459409391,5.52246208,1810.8,1810.5,0.8027]
[1746459409795,5.52246208,1810.8,1810.6,0.27832387]
[1746459410198,11.04516192,1810.8,1810.6,0.27832387]
[1746459410500,5.52272601,1810.7,1810.6,0.27832387]
[1746459412208,6.62724482,1810.7,1810.6,0.27832387]
[1746459412383,6.62724482,1810.7,1810.3,6.14]
[1746459412706,5.52360228,1810.5,1810.4,0.27877779]
[1746459413201,11.04720739,1810.5,1810.3,6.14]
[1746459413365,5.52360228,1810.5,1810.4,0.27877779]
[1746459413994,5.52364118,1810.4,1810.3,6.14]
[1746459415398,5.52360228,1810.5,1810.1,1.44809909]
[1746459415399,5.52354039,1810.5,1810.1,7.02776178]
[1746459415609,11.04710908,1810.5,1810.2,0.70277618]
[1746459415773,5.52370756,1810.4,1810.2,0.70277618]
[1746459416169,5.52370756,1810.4,1810.1,1.44809909]
[1746459416793,5.52370756,1810.4,1810.1,6.9726481]
[1746459417508,5.52370756,1810.4,1810.1,7.02788634]
[1746459417678,5.52370756,1810.4,1810.1,6.9726481]
[1746459418004,5.52354039,1810.5,1810.2,5.52423967]
[1746459418171,11.04712495,1810.5,1810.2,1.25519414]
[1746459418373,5.52354039,1810.5,1810.2,1.25519414]
[1746459418617,11.04713115,1810.5,1810.2,1.25519414]
[1746459418918,5.52354039,1810.5,1810.2,1.25519414]
[1746459419508,11.04711895,1810.5,1810.2,1.25519414]
[1746459419809,5.52354039,1810.5,1810.2,1.25519414]
[1746459420015,11.04654106,1810.6,1810.3,0.23312056]
[1746459420178,11.04649462,1810.6,1810.4,0.7989]
[1746459420507,5.52321226,1810.6,1810.5,0.23266659]
[1746459420821,4.676,1810.8,1810.5,0.23266659]
[1746459420822,5.52256686,1810.8,1810.5,0.23266659]
[1746459421177,5.52273763,1810.7,1810.5,0.23266659]
[1746459421934,5.52256686,1810.8,1810.5,5.75592008]
[1746459422221,5.52256686,1810.8,1810.6,1.36459201]
[1746459422222,5.52243136,1810.8,1810.6,1.36459201]
[1746459422404,5.52243136,1810.8,1810.7,0.23221272]
[1746459423525,5.52225244,1810.9,1810.7,0.23221272]
[1746459423696,5.52128586,1811.2,1810.7,5.75487607]
[1746459423697,5.52191981,1811.0,1810.7,5.75487607]
[1746459423892,11.04337932,1811.1,1810.7,5.75487607]
[1746459424094,5.52158054,1811.1,1810.8,0.57548761]
[1746459424293,5.52184559,1811.0,1810.9,0.23013765]
[1746459424492,5.52184559,1811.0,1810.8,0.57548761]
[1746459424701,5.52158054,1811.1,1810.9,0.23013765]
[1746459425023,5.52168207,1811.1,1810.9,0.8223]
[1746459425324,5.52168207,1811.1,1811.0,0.22888425]
[1746459425519,6.62598375,1811.1,1811.0,0.22888425]
[1746459425723,6.62598375,1811.1,1810.5,20.3983692]
[1746459425724,5.522524,1810.8,1810.6,0.7533]
[1746459425887,5.52272601,1810.7,1810.5,6.8933]
[1746459426092,5.52229952,1810.9,1810.5,12.41635039]
[1746459426336,11.04401488,1811.0,1810.6,6.35962536]
[1746459426502,5.52223675,1810.9,1810.6,6.30440242]
[1746459426701,5.52223675,1810.9,1810.6,8.42235191]
[1746459427824,5.52223675,1810.9,1810.6,2.89954949]
[1746459428022,5.52223675,1810.9,1810.6,0.7816]
[1746459428191,5.52253451,1810.8,1810.6,0.7816]
[1746459428392,5.52253451,1810.8,1810.4,12.47622135]
[1746459428618,5.52225514,1810.9,1810.5,5.52317707]
[1746459428835,5.52225514,1810.9,1810.6,0.8127]
[1746459430034,5.52225514,1810.9,1810.6,6.33563764]
[1746459430243,5.52197462,1811.0,1810.7,5.5227011]
[1746459430737,5.52197462,1811.0,1810.7,5.57792134]
[1746459431135,5.52197462,1811.0,1810.7,0.05522024]
[1746459432239,5.52197462,1811.0,1810.6,7.5213982]
[1746459432428,5.52221074,1810.9,1810.6,7.5213982]
[1746459432627,5.52221074,1810.9,1810.7,0.75213982]
[1746459432830,5.52197462,1811.0,1810.7,0.75213982]
[1746459433033,11.04401959,1811.0,1810.7,0.75213982]
[1746459433747,5.52197462,1811.0,1810.7,0.75213982]
[1746459434844,5.52197462,1811.0,1810.7,0.8073601]
[1746459435050,5.52197462,1811.0,1810.8,0.22723037]
[1746459435251,5.52172178,1811.1,1810.9,0.8163]
[1746459435448,5.52137205,1811.2,1811.0,0.22677665]
[1746459435743,11.04282637,1811.2,1811.0,0.22677665]
[1746459435932,5.52137205,1811.2,1811.0,0.22677665]
[1746459436132,11.04286239,1811.2,1811.0,0.22677665]
[1746459436449,5.52150626,1811.1,1811.0,0.22677665]
[1746459437843,5.5219673,1811.0,1810.7,7.71933982]
[1746459438054,5.5219673,1811.0,1810.8,0.77193398]
[1746459440456,5.5219673,1811.0,1810.7,1.57933982]
[1746459441452,5.5219673,1811.0,1810.7,7.10202018]
[1746459441651,5.52166357,1811.1,1810.7,12.62452857]
[1746459441862,5.52166357,1811.1,1810.7,12.6243688]
[1746459442016,5.52166357,1811.1,1810.7,7.10184821]
[1746459442348,5.52166357,1811.1,1810.8,0.71018482]
[1746459442520,5.52166357,1811.1,1810.7,7.10185034]
[1746459442726,5.52189302,1811.0,1810.7,7.10185034]
[1746459443155,5.52218212,1810.9,1810.7,1.57933982]
[1746459443731,5.52218212,1810.9,1810.7,0.8272]
[1746459444269,5.52189302,1811.0,1810.7,0.8272]
[1746459445249,5.52242102,1810.8,1810.6,1.18587491]
[1746459445459,5.52256525,1810.8,1810.6,0.7817]
[1746459445619,5.52223112,1810.9,1810.5,6.30494199]
[1746459446133,5.52223112,1810.9,1810.5,11.82809791]
[1746459446330,5.52223112,1810.9,1810.6,5.52302627]
[1746459448059,5.52193655,1811.0,1810.7,6.32121782]
[1746459448259,5.52193655,1811.0,1810.7,7.51116457]
[1746459448446,5.52169251,1811.1,1810.7,7.51095908]
[1746459448650,5.52169251,1811.1,1810.7,16.24541287]
[1746459448951,5.52169251,1811.1,1810.7,10.72289135]
[1746459449156,5.52137966,1811.2,1810.7,10.72289135]
[1746459449157,5.52093017,1811.3,1810.7,0.7985]
[1746459449460,5.52300768,1810.7,1810.5,0.7855]
[1746459449664,5.52360775,1810.5,1810.2,4.51092809]
[1746459449952,5.52362766,1810.5,1810.3,0.2279329]
[1746459450171,5.52364118,1810.4,1810.3,0.2279329]
[1746459450867,3.21193227,1810.6,1810.3,0.2279329]
[1746459450868,5.52314827,1810.6,1810.3,0.2279329]
[1746459451022,5.52314827,1810.6,1810.3,7.5250654]
[1746459451224,5.52287899,1810.7,1810.3,7.5250654]
[1746459451644,5.52364118,1810.4,1810.3,1.0578329]
[1746459451835,5.52364118,1810.4,1810.3,0.2279329]
[1746459453134,5.52364118,1810.4,1810.0,10.19866119]
[1746459453358,5.52364118,1810.4,1810.1,0.23000797]
[1746459454063,11.04755245,1810.4,1810.1,0.23000797]
[1746459454358,11.04813919,1810.3,1810.1,0.23000797]
[1746459454558,5.52395867,1810.3,1810.1,0.23000797]
[1746459454736,5.52395867,1810.3,1809.9,11.80779052]
[1746459454932,5.52395867,1810.3,1810.0,1.41101409]
[1746459455128,5.52374114,1810.4,1810.1,5.52453501]
[1746459455326,5.52344333,1810.5,1810.2,5.75395531]
[1746459455521,5.52321215,1810.6,1810.2,6.52355531]
[1746459455727,11.04652648,1810.6,1810.2,9.73548758]
[1746459456057,5.52321215,1810.6,1810.2,16.79104859]
[1746459457264,5.5228684,1810.7,1810.3,5.57907043]
[1746459457429,5.5228684,1810.7,1810.4,5.75603454]
[1746459457629,5.5228684,1810.7,1810.4,0.23240722]
[1746459457929,5.5228684,1810.7,1810.3,5.5238028]
[1746459458143,5.52306364,1810.6,1810.4,0.23132619]
[1746459458329,5.52293998,1810.7,1810.3,7.17989508]
[1746459458556,5.52293998,1810.7,1810.4,0.23132619]
[1746459458967,5.5230598,1810.6,1810.3,7.17989508]
[1746459459170,5.5230598,1810.6,1810.5,0.23093708]
[1746459459668,5.5230598,1810.6,1810.3,7.17989508]
[1746459459974,5.5230598,1810.6,1810.4,0.94915356]
[1746459460469,5.52333609,1810.5,1810.4,0.23116405]
[1746459460673,5.52365069,1810.4,1810.2,0.7696]
[1746459460860,5.52365069,1810.4,1810.3,0.23139105]
[1746459461373,5.52320544,1810.6,1810.3,0.23139105]
[1746459462469,5.5228533,1810.7,1810.3,5.8103478]
[1746459462677,5.5228533,1810.7,1810.4,0.58103478]
[1746459462965,5.52316941,1810.6,1810.5,0.23201795]
[1746459463168,5.5228533,1810.7,1810.5,0.23201795]
[1746459463346,5.5228533,1810.7,1810.3,5.52384823]
[1746459463980,5.5228533,1810.7,1810.5,0.8088]
[1746459464142,10.19659019,1810.8,1810.5,0.8088]
[1746459464468,5.52272601,1810.7,1810.6,0.2311965]
[1746459465873,10.19659019,1810.8,1810.6,0.2311965]
[1746459466748,5.52272601,1810.7,1810.6,0.2311965]
[1746459467801,5.52306279,1810.6,1810.3,6.34619351]
[1746459468103,5.52306279,1810.6,1810.4,0.63461935]
[1746459468797,5.52306279,1810.6,1810.3,6.34614809]
[1746459468987,5.52272601,1810.7,1810.3,6.34614809]
[1746459469170,11.04574823,1810.7,1810.3,6.34614809]
[1746459469788,5.52272601,1810.7,1810.3,6.34614809]
[1746459469992,5.52272601,1810.7,1810.3,6.40126824]
[1746459470189,5.52272601,1810.7,1810.4,0.64012682]
[1746459470501,5.52311595,1810.6,1810.3,6.34603491]
[1746459470702,5.52345601,1810.5,1810.3,0.8223]
[1746459470991,5.52311595,1810.6,1810.2,11.66412667]
[1746459472189,5.5229165,1810.7,1810.3,11.04777074]
[1746459472492,5.5229165,1810.7,1810.3,11.83851853]
[1746459472668,5.5229165,1810.7,1810.3,6.31465757]
[1746459472874,5.5230872,1810.6,1810.3,6.31465757]
[1746459473064,5.5229165,1810.7,1810.3,7.4985317]
[1746459473280,5.52305546,1810.6,1810.3,7.4985317]
[1746459473486,5.52305546,1810.6,1810.3,1.97477413]
[1746459473487,11.04634829,1810.6,1810.3,1.97477413]
[1746459473675,5.52337382,1810.5,1810.3,1.97477413]
[1746459475883,5.52337382,1810.5,1810.3,0.7909]
[1746459476391,10.19643963,1810.8,1810.2,0.7711]
[1746459476392,4.674,1810.8,1810.2,0.7711]
[1746459476589,5.52368184,1810.4,1810.1,5.52442886]
[1746459476895,5.52334598,1810.5,1810.1,5.52442886]
[1746459477188,5.52334598,1810.5,1810.1,5.52435555]
[1746459477394,5.52320311,1810.6,1810.2,11.84128428]
[1746459477694,5.52320311,1810.6,1810.2,11.84122232]
[1746459477871,5.52320311,1810.6,1810.2,6.31715106]
[1746459478073,11.04653648,1810.6,1810.2,6.31715106]
[1746459478295,5.52320311,1810.6,1810.2,6.31715106]
[1746459478464,5.52320311,1810.6,1810.2,7.59425742]
[1746459478663,5.52320311,1810.6,1810.3,5.52392341]
[1746459479880,5.52320311,1810.6,1810.4,0.21211203]
[1746459480079,5.52320311,1810.6,1810.3,5.52392341]
[1746459480291,5.52320311,1810.6,1810.4,0.21211203]
[1746459480494,5.52320311,1810.6,1810.3,5.52392341]
[1746459480684,5.52320311,1810.6,1810.4,0.21211203]
[1746459480883,5.52320311,1810.6,1810.2,7.59425742]
[1746459481204,5.52342325,1810.5,1810.3,0.21233903]
[1746459481571,5.52364118,1810.4,1810.3,0.21233903]
[1746459482095,5.52516713,1809.9,1809.8,3.68102809]
[1746459483785,5.52577775,1809.7,1809.6,3.68102809]
[1746459486723,5.52560192,1809.8,1809.6,3.68102809]
[1746459486900,5.52538966,1809.9,1809.6,3.68102809]
[1746459487105,5.52577775,1809.7,1809.6,3.68102809]
[1746459487404,5.52547423,1809.8,1809.6,3.68102809]
[1746459488628,5.52547423,1809.8,1809.4,6.33434299]
[1746459488941,11.05120276,1809.8,1809.5,0.6334343]
[1746459489146,5.52547423,1809.8,1809.5,0.6334343]
[1746459490257,11.05122051,1809.8,1809.5,0.6334343]
[1746459490544,5.52547423,1809.8,1809.5,0.6334343]
[1746459490703,11.05117856,1809.8,1809.5,0.6334343]
[1746459490906,5.52547423,1809.8,1809.5,0.6334343]
[1746459491104,11.05124845,1809.8,1809.5,0.6334343]
[1746459491560,5.52547423,1809.8,1809.5,0.6334343]
[1746459491719,4.671,1810.0,1809.6,6.31396204]
[1746459492045,5.52518958,1809.9,1809.7,0.6313962]
[1746459492757,5.52518958,1809.9,1809.6,0.7879]
[1746459492945,5.52518958,1809.9,1809.6,6.31394843]
[1746459494367,10.19598463,1810.0,1809.6,6.31394843]
[1746459494567,4.671,1810.0,1809.6,0.7879]
[1746459494733,4.671,1810.0,1809.8,5.52536448]
[1746459494922,5.52441796,1810.2,1809.9,0.9658367]
[1746459495341,5.52441796,1810.2,1809.9,6.49097375]
[1746459495658,5.52464911,1810.1,1809.9,0.9658367]
[1746459495847,5.52486187,1810.0,1809.9,0.1951367]
[1746459496233,5.52527909,1809.9,1809.7,0.7707]
[1746459496435,5.52527909,1809.9,1809.7,1.40035364]
[1746459497152,5.52486187,1810.0,1809.7,1.40035364]
[1746459497462,5.52526436,1809.9,1809.7,1.40035364]
[1746459497663,5.52486187,1810.0,1809.7,1.40035364]
[1746459498375,11.05067444,1809.9,1809.7,1.40035364]
[1746459498564,5.52568932,1809.8,1809.5,9.25986657]
[1746459498734,5.52568932,1809.8,1809.5,5.4145]
[1746459498937,5.52486187,1810.0,1809.5,0.7505]
[1746459498938,5.52578703,1809.7,1809.5,0.7505]
[1746459499252,5.52578703,1809.7,1809.4,0.8128]
[1746459499425,5.52578703,1809.7,1809.4,2.32063648]
[1746459499628,5.52578703,1809.7,1809.4,7.84732682]
[1746459499836,5.52578703,1809.7,1809.4,2.32063648]
[1746459500036,5.52614241,1809.6,1809.4,2.32063648]
[1746459500256,5.52608328,1809.6,1809.4,0.8128]
[1746459500623,5.52608328,1809.6,1809.2,6.31717039]
[1746459500830,5.52608328,1809.6,1809.3,5.52697771]
[1746459501266,5.52608328,1809.6,1809.2,6.31715247]
[1746459501438,5.52608328,1809.6,1809.2,11.89950267]
[1746459501643,5.52608328,1809.6,1809.2,9.27676826]
[1746459501837,5.52608328,1809.6,1809.2,3.7496839]
[1746459501838,5.52641232,1809.5,1809.2,3.7496839]
[1746459502173,5.52641232,1809.5,1809.2,9.27695475]
[1746459502471,5.52647969,1809.5,1809.2,3.7496839]
[1746459502841,5.52647969,1809.5,1809.2,0.7900376]
[1746459503037,5.52670291,1809.4,1809.2,0.7900376]
[1746459503482,5.52670291,1809.4,1809.2,0.0395376]
[1746459503639,5.52699939,1809.3,1809.2,0.0395376]
[1746459504439,5.52670291,1809.4,1809.2,0.0395376]
[1746459508274,5.52653421,1809.5,1809.2,0.0395376]
[1746459508447,5.52671044,1809.4,1809.2,0.0395376]
[1746459509181,5.52699939,1809.3,1809.2,0.0395376]
[1746459510278,5.52671044,1809.4,1809.2,0.22944933]
[1746459511158,5.52699939,1809.3,1809.2,0.22944933]
[1746459512916,6.63237037,1809.3,1809.2,0.22944933]
[1746459517727,5.52699939,1809.3,1809.2,0.22944933]
[1746459518014,11.05365366,1809.4,1809.2,0.22944933]
[1746459518179,5.52671044,1809.4,1809.2,0.22944933]
[1746459518978,11.05365917,1809.4,1809.2,0.22944933]
[1746459519178,5.52671044,1809.4,1809.2,0.22944933]
[1746459519803,11.05369124,1809.4,1809.2,0.22944933]
[1746459520579,5.52699939,1809.3,1809.2,0.22944933]
[1746459522430,5.52657178,1809.5,1809.2,0.22944933]
[1746459522584,11.05326024,1809.5,1809.2,0.22944933]
[1746459522779,5.52626501,1809.6,1809.3,0.8299]
[1746459522978,5.52626501,1809.6,1809.4,0.19241676]
[1746459523204,5.52626501,1809.6,1809.3,0.8299]
[1746459523402,5.52626501,1809.6,1809.5,0.19213572]
[1746459523616,5.52626501,1809.6,1809.4,0.19236294]
[1746459523819,5.52626501,1809.6,1809.5,0.19165141]
[1746459524193,10.18191252,1809.7,1809.3,6.35688779]
[1746459524437,10.18191252,1809.7,1809.4,0.82756741]
[1746459524613,5.52608418,1809.6,1809.4,0.82756741]
[1746459525014,10.1819633,1809.7,1809.4,0.82756741]
[1746459525212,0.42336564,1810.1,1809.4,0.82756741]
[1746459525405,21.50093227,1810.2,1809.5,9.52720713]
[1746459525406,5.52537167,1809.9,1809.5,9.52720713]
[1746459525601,5.52537167,1809.9,1809.6,0.95272071]
[1746459525602,5.52556533,1809.8,1809.6,0.95272071]
[1746459525915,5.52556533,1809.8,1809.6,0.18835712]
[1746459526848,5.52577775,1809.7,1809.6,0.18835712]
[1746459527315,11.05129746,1809.8,1809.6,0.18835712]
[1746459527512,5.52556533,1809.8,1809.6,0.18835712]
[1746459528433,5.51514055,1809.8,1809.6,0.18835712]
[1746459529134,5.51514055,1809.8,1809.6,0.83873149]
[1746459529632,5.52530274,1809.9,1809.6,0.83873149]
[1746459529951,5.52530274,1809.9,1809.6,6.36471728]
[1746459530103,5.52530274,1809.9,1809.6,0.83873149]
[1746459530531,5.52560734,1809.8,1809.6,0.83873149]
[1746459531143,5.52577775,1809.7,1809.6,0.18835712]
[1746459531633,5.52560734,1809.8,1809.6,0.18835712]
[1746459532640,5.52577775,1809.7,1809.6,0.18835712]
[1746459533224,5.52661011,1809.5,1809.3,0.7654]
[1746459534051,11.05327589,1809.5,1809.3,0.7654]
[1746459534213,5.52661011,1809.5,1809.3,0.7654]
[1746459535358,11.0532255,1809.5,1809.3,0.7654]
[1746459535645,5.52661011,1809.5,1809.3,0.7654]
[1746459536938,5.52621317,1809.6,1809.3,0.7654]
[1746459537252,5.52621317,1809.6,1809.3,6.9255837]
[1746459537449,5.52648873,1809.5,1809.3,1.3986045]
[1746459537631,5.52648873,1809.5,1809.3,0.7654]
[1746459540039,5.52648873,1809.5,1809.4,0.18929576]
[1746459540368,5.52648873,1809.5,1809.3,0.7654]
[1746459540535,5.52648873,1809.5,1809.4,0.18929576]
[1746459540862,5.52648873,1809.5,1809.3,0.7654]
[1746459541154,5.52648873,1809.5,1809.4,0.18929576]
[1746459541360,5.52699939,1809.3,1809.2,0.0395376]
[1746459543844,6.07699939,1809.3,1809.2,0.0395376]
[1746459545682,5.52699939,1809.3,1809.2,0.0395376]
[1746459545881,11.05381115,1809.4,1809.2,0.0395376]
[1746459546069,5.52683212,1809.4,1809.2,0.0395376]
[1746459546811,5.51722287,1809.4,1809.2,0.0395376]
[1746459546998,5.51722287,1809.4,1809.2,0.67231031]
[1746459547200,11.04421122,1809.4,1809.2,0.67231031]
[1746459547398,5.51722287,1809.4,1809.2,0.0395376]
[1746459547776,5.52699939,1809.3,1809.2,0.0395376]
[1746459548508,5.52650495,1809.5,1809.2,0.0395376]
[1746459548813,5.52641342,1809.5,1809.3,0.8139]
[1746459549611,11.05263896,1809.6,1809.3,0.8139]
[1746459549815,5.52653847,1809.5,1809.3,1.77314852]
[1746459549992,5.52653847,1809.5,1809.3,0.8139]
[1746459550404,5.52669393,1809.4,1809.3,0.8139]
[1746459550714,5.52669393,1809.4,1809.2,0.8534376]
[1746459551121,5.52654896,1809.5,1809.2,0.8534376]
[1746459552019,5.52654896,1809.5,1809.2,6.38070723]
[1746459552317,5.52623206,1809.6,1809.4,0.8139]
[1746459552503,10.18191486,1809.7,1809.4,0.8139]
[1746459552710,10.18191486,1809.7,1809.4,6.34056908]
[1746459553020,18.289,1810.2,1809.6,3.21193227]
[1746459553221,5.52504763,1810.0,1809.7,0.8139]
[1746459553521,5.52504763,1810.0,1809.7,7.29476041]
[1746459554227,5.52437353,1810.2,1809.7,7.29464565]
[1746459554419,5.5246613,1810.1,1809.7,7.29464565]
[1746459555002,5.5246613,1810.1,1809.8,0.18908646]
[1746459555198,5.5251328,1810.0,1809.8,0.18908646]
[1746459555890,11.04955927,1810.1,1809.8,0.18908646]
[1746459556115,11.04955927,1810.1,1809.8,0.93746605]
[1746459556298,5.52503953,1810.0,1809.8,0.93746605]
[1746459556624,5.52503953,1810.0,1809.8,0.18908646]
[1746459557031,5.52516713,1809.9,1809.8,0.18908646]
[1746459559603,5.52565842,1809.8,1809.4,6.35437463]
[1746459559805,5.52565842,1809.8,1809.5,0.18750873]
[1746459561334,5.52565842,1809.8,1809.5,5.71388906]
[1746459561622,5.52565842,1809.8,1809.5,6.92069897]
[1746459561834,5.52536474,1809.9,1809.6,0.8124]
[1746459562235,5.52504666,1810.0,1809.7,0.18705436]
[1746459562438,5.52504666,1810.0,1809.7,5.71281659]
[1746459562615,5.52504666,1810.0,1809.7,1.20511442]
[1746459562804,11.0501761,1810.0,1809.8,0.18682721]
[1746459563201,5.52504666,1810.0,1809.8,0.18682721]
[1746459563403,5.52516713,1809.9,1809.8,0.18682721]
[1746459564055,5.52557599,1809.8,1809.6,0.8124]
[1746459564199,3.76193227,1810.0,1809.4,0.7767]
[1746459564404,5.52637051,1809.6,1809.4,0.7767]
[1746459565239,5.52577775,1809.7,1809.2,4.7045376]
[1746459565535,5.52628639,1809.6,1809.2,5.4812376]
[1746459565740,5.52628639,1809.6,1809.2,11.00829574]
[1746459565947,5.52628639,1809.6,1809.3,1.10082957]
[1746459566303,5.52679044,1809.4,1809.2,0.8162376]
[1746459566508,5.52679044,1809.4,1809.2,0.0395376]
[1746459566509,11.05378015,1809.4,1809.2,0.0395376]
[1746459566906,5.52699939,1809.3,1809.2,0.0395376]
[1746459567627,5.52652636,1809.5,1809.2,0.0395376]
[1746459568150,11.0531891,1809.5,1809.2,0.0395376]
[1746459568332,5.52685264,1809.4,1809.2,0.0395376]
[1746459568636,5.52652636,1809.5,1809.2,0.0395376]
[1746459569000,5.52669929,1809.4,1809.2,0.0395376]
[1746459570021,5.52669929,1809.4,1809.3,0.17323824]
[1746459570218,5.52655728,1809.5,1809.3,0.17323824]
[1746459570429,5.5262803,1809.6,1809.3,6.47973053]
[1746459570632,5.52594271,1809.7,1809.3,10.89612956]
[1746459570834,11.05137597,1809.8,1809.4,5.52656497]
[1746459571155,5.52578296,1809.7,1809.5,0.17278376]
[1746459571449,5.52578296,1809.7,1809.3,10.72289132]
[1746459571647,5.52564896,1809.8,1809.6,0.17255657]
[1746459571862,5.52564896,1809.8,1809.6,0.7558]
[1746459572161,5.52564896,1809.8,1809.7,0.17232939]
[1746459572363,5.52564896,1809.8,1809.6,0.7558]
[1746459572580,5.52531124,1809.9,1809.7,0.17232939]
[1746459572873,5.52531124,1809.9,1809.6,1.38400865]
[1746459573065,5.52531124,1809.9,1809.8,0.17210225]
[1746459573365,15.71511009,1810.0,1809.8,0.17210225]
[1746459573554,5.52525722,1809.9,1809.6,6.91007874]
[1746459573753,5.52525722,1809.9,1809.7,0.86333726]
[1746459574280,10.18999477,1810.0,1809.7,0.86333726]
[1746459574747,10.18999477,1810.0,1809.7,6.38903069]
[1746459574748,4.665,1810.0,1809.7,6.38903069]
[1746459575269,5.52517632,1809.9,1809.7,0.86333726]
[1746459575566,5.52517632,1809.9,1809.7,0.17232939]
[1746459575767,5.52517632,1809.9,1809.6,1.38400865]
[1746459575768,5.52517632,1809.9,1809.6,6.91008142]
[1746459576067,5.52517632,1809.9,1809.7,0.17232939]
[1746459576573,5.52490961,1810.0,1809.8,0.17210225]
[1746459576728,5.52490961,1810.0,1809.6,6.90986284]
[1746459577074,5.52490961,1810.0,1809.7,0.86202667]
[1746459578560,11.05006421,1810.0,1809.7,0.86202667]
[1746459578746,5.52533195,1809.9,1809.7,0.86202667]
[1746459578938,5.52533195,1809.9,1809.7,0.17104039]
[1746459579133,5.52533195,1809.9,1809.6,1.38400865]
[1746459579339,5.52533195,1809.9,1809.7,0.17104039]
[1746459579538,5.52533195,1809.9,1809.6,6.91007497]
[1746459579740,5.52533195,1809.9,1809.7,0.17104039]
[1746459579940,5.52490961,1810.0,1809.7,0.70811154]
[1746459580161,5.52490961,1810.0,1809.8,0.17081325]
[1746459580495,11.04999827,1810.0,1809.8,0.17081325]
[1746459580666,5.52516713,1809.9,1809.8,0.17081325]
[1746459581076,5.52490961,1810.0,1809.8,0.17081325]
[1746459582868,5.52516713,1809.9,1809.8,0.17081325]
[1746459586350,5.52516713,1809.9,1809.6,6.91004043]
[1746459586666,5.52516713,1809.9,1809.7,0.86204443]
[1746459587094,5.52516713,1809.9,1809.7,0.17104039]
[1746459587294,5.52547242,1809.8,1809.7,0.17104039]
[1746459587469,5.5263885,1809.5,1809.4,6.14]
[1746459587669,5.52619863,1809.6,1809.2,11.86605998]
[1746459587868,5.52619863,1809.6,1809.2,11.86595371]
[1746459588107,5.52619863,1809.6,1809.3,1.18659537]
[1746459588401,11.05196469,1809.7,1809.3,6.71351789]
[1746459588609,5.52591835,1809.7,1809.3,6.71351789]
[1746459588775,5.52591835,1809.7,1809.3,15.45229453]
[1746459589403,5.52591835,1809.7,1809.3,9.92537201]
[1746459589800,5.52612272,1809.6,1809.3,9.92537201]
[1746459591109,5.52612272,1809.6,1809.3,4.39852764]
[1746459591326,5.52676039,1809.4,1809.2,0.8117376]
[1746459592917,11.05303756,1809.5,1809.2,0.8117376]
[1746459593114,5.52641778,1809.5,1809.2,0.8117376]
[1746459593316,5.52699939,1809.3,1809.2,0.0395376]
[1746459593476,6.07969933,1809.3,1809.2,0.0395376]
[1746459593681,5.52699939,1809.3,1809.2,0.0395376]
[1746459597619,5.52682859,1809.4,1809.2,0.0395376]
[1746459597793,11.05379577,1809.4,1809.2,0.0395376]
[1746459597984,11.05379407,1809.4,1809.2,0.0395376]
[1746459598518,11.0531878,1809.5,1809.2,0.0395376]
[1746459598813,5.52611564,1809.6,1809.3,6.28440308]
[1746459599220,5.52611564,1809.6,1809.3,0.7575]
[1746459599816,11.05248483,1809.6,1809.3,0.7575]
[1746459600022,5.52611564,1809.6,1809.4,0.17311837]
[1746459600191,5.52592677,1809.7,1809.3,6.28439332]
[1746459600393,11.05195294,1809.7,1809.4,0.8015577]
[1746459600625,5.52592677,1809.7,1809.4,6.32814481]
[1746459600992,11.05195421,1809.7,1809.4,0.8015577]
[1746459601199,5.52612747,1809.6,1809.4,0.8015577]
[1746459602031,5.52592677,1809.7,1809.4,0.8015577]
[1746459602315,5.52613174,1809.6,1809.4,0.17311837]
[1746459602614,5.52592677,1809.7,1809.3,11.8111416]
[1746459602816,5.52592677,1809.7,1809.4,0.17311837]
[1746459603014,5.52592677,1809.7,1809.3,11.8111416]
[1746459603317,5.52592677,1809.7,1809.4,0.17311837]
[1746459603613,5.52592677,1809.7,1809.4,1.198426]
[1746459603916,5.52592677,1809.7,1809.5,0.17289114]
[1746459604823,5.52608311,1809.6,1809.5,0.17289114]
[1746459605115,5.52599009,1809.7,1809.5,0.17289114]
[1746459605318,5.52608311,1809.6,1809.5,0.17289114]
[1746459606030,5.52643821,1809.5,1809.3,0.7575]
[1746459606178,5.52643821,1809.5,1809.3,1.76679533]
[1746459606381,5.52643821,1809.5,1809.2,4.60137579]
[1746459606582,5.52621427,1809.6,1809.2,10.12865337]
[1746459606838,5.52639459,1809.5,1809.2,10.12865337]
[1746459607416,5.52621427,1809.6,1809.2,10.18372545]
[1746459607616,5.52593662,1809.7,1809.4,5.52660823]
[1746459607803,5.52593662,1809.7,1809.4,9.84389256]
[1746459608006,5.52593662,1809.7,1809.5,0.8158]
[1746459609803,11.05194634,1809.7,1809.5,0.8158]
[1746459610011,5.52593662,1809.7,1809.5,0.8158]
[1746459611517,5.5253305,1809.9,1809.6,3.21193227]